bitfinex/quotes_ETHUSD_20230902
["timestamp","ask_amount","ask_price","bid_price","bid_amount"]
[1693612801822,3.08185404,1630.1,1630.0,1.0661845]
[1693612802619,3.08185404,1630.1,1629.9,3.41463865]
[1693612803620,3.08185404,1630.1,1630.0,1.70881581]
[1693612804419,0.49114231,1630.4,1630.0,1.0661089]
[1693612804610,1.5838,1630.4,1630.0,1.70881581]
[1693612804816,1.5838,1630.4,1630.1,2.5844]
[1693612805050,1.5838,1630.4,1630.1,3.01372158]
[1693612806345,1.5838,1630.4,1629.8,0.64155113]
[1693612806346,4.5838,1630.4,1629.8,0.64155113]
[1693612806513,3.0,1630.2,1629.8,0.64155113]
[1693612806718,3.0,1630.2,1629.8,2.21455113]
[1693612806921,3.0,1630.2,1629.9,1.0660894]
[1693612807114,3.08185404,1630.1,1629.9,0.32806405]
[1693612807320,3.08185404,1630.1,1629.6,1.60387782]
[1693612808020,3.08185404,1630.1,1629.6,2.67004245]
[1693612808219,3.08185404,1630.1,1629.6,1.70771576]
[1693612808438,4.6561,1630.2,1629.6,3.22551576]
[1693612808617,3.0,1630.2,1629.7,1.38871621]
[1693612808816,3.0,1630.2,1629.7,0.32255158]
[1693612809241,3.0,1630.2,1629.7,1.38869734]
[1693612809450,3.0,1630.2,1629.7,0.32255158]
[1693612809944,3.0,1630.2,1629.7,1.84035158]
[1693612813140,3.0,1630.0,1629.7,1.84035158]
[1693612813449,3.0,1630.0,1629.7,1.5178]
[1693612813654,3.0,1630.0,1629.5,0.64155113]
[1693612813963,1.839,1630.1,1629.5,3.35122633]
[1693612814182,1.839,1630.1,1629.6,1.0661752]
[1693612814467,3.0,1630.0,1629.6,1.0661752]
[1693612814648,3.0,1630.0,1629.6,2.6026752]
[1693612814950,3.0,1630.0,1629.6,1.5365]
[1693612815123,3.0,1630.0,1629.7,0.58893563]
[1693612815318,3.0,1630.0,1629.6,1.5365]
[1693612817970,1.839,1630.1,1629.6,1.5365]
[1693612818323,3.0,1630.0,1629.6,1.5365]
[1693612818525,3.0,1630.0,1629.6,3.7565]
[1693612818730,3.0,1630.0,1629.7,0.37565]
[1693612823552,1.839,1630.1,1629.7,0.37565]
[1693612823754,3.0,1630.0,1629.7,0.37565]
[1693612824667,1.839,1630.1,1629.7,0.37565]
[1693612824855,3.0,1630.0,1629.7,0.37565]
[1693612825241,11.25217863,1630.2,1629.7,0.37565]
[1693612825445,11.71478979,1630.2,1629.7,1.99005]
[1693612826365,0.64346187,1630.2,1629.7,3.56305]
[1693612826568,0.64346187,1630.2,1629.8,0.356305]
[1693612827066,0.64346187,1630.2,1629.8,2.487005]
[1693612828435,0.64346187,1630.2,1629.9,0.58847162]
[1693612828768,0.64346187,1630.2,1629.8,2.487005]
[1693612830283,2.41046187,1630.2,1629.8,2.487005]
[1693612833702,3.37565166,1630.2,1629.8,2.487005]
[1693612834296,2.41046187,1630.2,1629.8,2.487005]
[1693612834493,3.37565166,1630.2,1629.8,2.487005]
[1693612836711,0.64346187,1630.1,1629.8,2.487005]
[1693612837011,3.37565166,1630.2,1629.8,2.487005]
[1693612837580,0.64346187,1630.1,1629.8,2.487005]
[1693612841615,2.73221338,1630.2,1629.8,2.487005]
[1693612841913,0.64347559,1630.1,1629.8,2.487005]
[1693612842608,2.39517559,1630.1,1629.8,2.487005]
[1693612843021,2.39517559,1630.1,1629.8,2.98368678]
[1693612843513,2.39517559,1630.1,1629.9,0.58847162]
[1693612843714,3.36038897,1630.1,1629.8,2.98368678]
[1693612844513,0.64347559,1630.0,1629.8,2.98368678]
[1693612845641,3.36038897,1630.1,1629.8,2.98368678]
[1693612846608,0.64347559,1630.1,1629.8,2.98368678]
[1693612846939,1.60868897,1630.2,1629.8,2.98368678]
[1693612847111,0.64347559,1630.2,1629.8,2.98368678]
[1693612847297,1.81933282,1630.2,1629.8,2.98368678]
[1693612847697,1.60868897,1630.2,1629.8,2.98368678]
[1693612847910,1.82963284,1630.2,1629.8,2.98368678]
[1693612848345,1.82963284,1630.2,1629.8,3.8830422]
[1693612848599,1.82963284,1630.2,1629.9,0.38830422]
[1693612849900,3.53903284,1630.2,1629.9,0.38830422]
[1693612850211,3.31808897,1630.2,1629.9,0.38830422]
[1693612852335,0.64347559,1630.1,1629.9,0.38830422]
[1693612852498,3.31808897,1630.2,1629.9,0.38830422]
[1693612853634,0.64347559,1630.1,1629.9,0.38830422]
[1693612855927,0.74156961,1630.1,1629.9,0.38830422]
[1693612857421,0.64347559,1630.1,1629.8,3.5267372]
[1693612857621,1.21424833,1630.1,1629.8,3.5267372]
[1693612857822,3.02834833,1630.1,1629.8,3.5267372]
[1693612858010,2.45757559,1630.1,1629.8,3.5267372]
[1693612858415,2.45757559,1630.1,1629.9,0.58847162]
[1693612858809,2.45757559,1630.1,1629.8,3.5267372]
[1693612859009,2.45757559,1630.1,1629.8,4.07427592]
[1693612860507,3.42278897,1630.1,1629.8,4.07427592]
[1693612860700,3.42278897,1630.1,1629.8,3.5267372]
[1693612860900,0.77015118,1630.0,1629.8,3.5267372]
[1693612861524,1.26430406,1630.0,1629.8,3.5267372]
[1693612861726,2.22951744,1630.0,1629.8,1.3960372]
[1693612862030,0.26586683,1629.9,1629.6,3.7781]
[1693612862341,0.64347559,1629.9,1629.6,3.17295335]
[1693612862546,0.64347559,1629.8,1629.5,1.39343354]
[1693612862836,0.64347559,1629.8,1629.4,2.1985]
[1693612863036,2.43447559,1629.8,1629.4,2.1985]
[1693612863821,1.69791803,1629.7,1629.4,2.1985]
[1693612866509,1.69791803,1629.7,1629.2,4.10171129]
[1693612866712,0.64347559,1629.7,1629.3,2.1721]
[1693612866942,1.8535,1629.6,1629.3,2.1721]
[1693612873555,1.8535,1629.6,1629.4,0.55324213]
[1693612873938,1.8535,1629.6,1629.3,2.1721]
[1693612883337,1.8535,1629.6,1629.3,2.66582708]
[1693612883792,1.8535,1629.6,1629.3,3.59718427]
[1693612884084,1.8535,1629.6,1629.4,0.35971843]
[1693612888685,1.8535,1629.6,1629.5,0.55316629]
[1693612889056,1.60868897,1629.7,1629.5,0.55316629]
[1693612889257,2.67494292,1629.7,1629.5,0.55316629]
[1693612893089,1.06625395,1629.6,1629.5,0.55316629]
[1693612893250,1.70972954,1629.6,1629.5,0.55316629]
[1693612893488,0.64347559,1629.6,1629.5,0.55316629]
[1693612893800,1.70972954,1629.6,1629.5,0.55316629]
[1693612896591,3.30910962,1629.6,1629.5,0.55316629]
[1693612901616,4.274323,1629.6,1629.5,0.55316629]
[1693612902189,4.274323,1629.6,1629.5,1.04531525]
[1693612902702,3.63084741,1629.6,1629.5,1.04531525]
[1693612905688,4.91779859,1629.6,1629.5,1.04531525]
[1693612906805,6.08509138,1629.6,1629.5,1.04531525]
[1693612912351,7.69378035,1629.6,1629.5,1.04531525]
[1693612913639,6.40682917,1629.6,1629.5,1.04531525]
[1693612919281,4.7981402,1629.6,1629.5,0.55316629]
[1693612919425,6.40958882,1629.6,1629.5,0.55316629]
[1693612920363,4.7981402,1629.6,1629.5,0.55316629]
[1693612920737,4.7981402,1629.6,1629.3,2.66582708]
[1693612921065,0.9668746,1629.4,1629.3,2.66582708]
[1693612921261,2.56625468,1629.4,1629.3,3.09721979]
[1693612921461,0.9668746,1629.4,1629.3,0.92511979]
[1693612921667,3.63250863,1629.4,1629.3,0.49372708]
[1693612921851,3.63250863,1629.4,1629.1,5.4176]
[1693612922049,3.63250863,1629.4,1629.1,3.8023]
[1693612922050,3.31014334,1629.3,1629.1,3.8023]
[1693612922259,0.64450931,1629.3,1629.1,4.70154279]
[1693612926417,0.64450931,1629.3,1629.1,5.20246405]
[1693612926721,0.64450931,1629.3,1629.2,0.5202464]
[1693612933633,0.64450931,1629.3,1629.2,1.05837668]
[1693612933832,0.64450931,1629.3,1629.2,0.5202464]
[1693612943440,2.24401786,1629.3,1629.2,0.5202464]
[1693612943642,0.64450931,1629.3,1629.2,0.5202464]
[1693612944147,2.24401786,1629.3,1629.2,0.5202464]
[1693612944365,0.64450931,1629.3,1629.2,0.5202464]
[1693612944785,2.24401786,1629.3,1629.2,0.5202464]
[1693612948456,2.24401786,1629.3,1629.2,1.0424774]
[1693612948858,3.31035416,1629.3,1629.2,1.0424774]
[1693612950755,3.31035416,1629.3,1629.2,0.522231]
[1693612951076,3.63271945,1629.3,1629.2,0.522231]
[1693612951277,3.63271945,1629.3,1629.1,3.62946405]
[1693612951480,3.310093,1629.2,1629.1,3.62946405]
[1693612951781,4.2769676,1629.2,1629.1,3.62946405]
[1693612952084,4.2769676,1629.2,1629.1,2.03041046]
[1693612952748,3.310093,1629.2,1629.1,2.03041046]
[1693612953071,4.2769676,1629.2,1629.1,2.03041046]
[1693612953273,4.2769676,1629.2,1629.1,1.50016405]
[1693612953274,4.92188559,1629.2,1629.1,1.50016405]
[1693612953708,3.63271945,1629.2,1629.1,1.50016405]
[1693612953847,4.92188559,1629.2,1629.1,1.50016405]
[1693612954055,4.92188559,1629.2,1629.1,0.60092126]
[1693612954451,3.63271945,1629.2,1629.1,0.60092126]
[1693612955095,4.92188559,1629.2,1629.1,0.60092126]
[1693612955412,3.63271945,1629.2,1629.1,0.60092126]
[1693612963604,3.63271945,1629.2,1629.1,1.10724259]
[1693612964702,4.68132382,1629.3,1629.1,1.10724259]
[1693612964703,3.06844591,1629.3,1629.1,1.10724259]
[1693612964906,3.63197104,1629.2,1629.1,1.10724259]
[1693612965622,3.30999352,1629.2,1629.1,2.68024259]
[1693612965911,3.30999352,1629.2,1629.1,3.11556685]
[1693612966112,2.24352888,1629.2,1629.1,3.11556685]
[1693612972111,1.60964134,1629.2,1629.1,3.11556685]
[1693612972278,3.63197104,1629.2,1629.1,3.11556685]
[1693612972479,0.96580943,1629.2,1629.1,3.11556685]
[1693612972680,2.5655064,1629.2,1629.1,3.11556685]
[1693612972878,3.63197104,1629.2,1629.1,3.11556685]
[1693612975385,2.5655064,1629.2,1629.1,3.11556685]
[1693612978029,3.31003295,1629.2,1629.1,3.11556685]
[1693612978182,3.31003295,1629.2,1629.1,6.19742089]
[1693612979210,2.24356831,1629.2,1629.1,5.69649963]
[1693612979405,3.31003295,1629.2,1629.1,5.69649963]
[1693612979617,2.24356831,1629.2,1629.1,5.69649963]
[1693612980264,2.24356831,1629.2,1629.1,2.61464559]
[1693612980850,3.31003295,1629.2,1629.1,2.61464559]
[1693612981961,4.27584238,1629.2,1629.1,2.61464559]
[1693612982462,4.27584238,1629.2,1629.1,0.60632133]
[1693612982463,10.27584238,1629.2,1629.1,0.60632133]
[1693612982655,12.08682318,1629.2,1629.1,0.60632133]
[1693612983466,6.08682318,1629.2,1629.1,0.60632133]
[1693612988382,6.0871117,1629.2,1629.1,0.60632133]
[1693612997297,7.69707256,1629.2,1629.1,0.60632133]
[1693612998468,6.0871117,1629.2,1629.1,0.60632133]
[1693613001932,7.69707256,1629.2,1629.1,0.60632133]
[1693613002134,6.0871117,1629.2,1629.1,0.60632133]
[1693613002939,7.69707256,1629.2,1629.1,0.60632133]
[1693613012565,6.40910387,1629.2,1629.1,0.60632133]
[1693613024839,4.79914301,1629.2,1629.1,0.60632133]
[1693613031113,6.73109604,1629.2,1629.1,1e-08]
[1693613031504,6.73109604,1629.2,1629.1,0.49783026]
[1693613033415,4.79914301,1629.2,1629.1,0.49783026]
[1693613034180,6.73109604,1629.2,1629.1,0.49783026]
[1693613034418,4.79914301,1629.2,1629.1,0.49783026]
[1693613038285,9.39746012,1629.2,1629.1,0.49783026]
[1693613044429,7.7983,1629.3,1629.1,0.49783026]
[1693613044585,9.39904453,1629.2,1629.1,0.49783026]
[1693613055631,9.39904453,1629.2,1629.0,0.1]
[1693613055632,6.0,1629.1,1629.0,0.1]
[1693613055827,15.39925034,1629.1,1629.0,0.1]
[1693613063453,15.39925034,1629.1,1629.0,0.59916376]
[1693613071180,15.39925034,1629.1,1628.8,3.6658]
[1693613071480,2.89995026,1628.9,1628.8,2.1562]
[1693613071652,8.89995026,1628.9,1628.8,2.1562]
[1693613071844,13.69944713,1628.9,1628.7,1.573]
[1693613072040,3.63301909,1628.8,1628.7,1.573]
[1693613072240,3.63301909,1628.8,1628.7,7.76469788]
[1693613074180,3.63301909,1628.8,1628.7,1.573]
[1693613074346,3.63301909,1628.8,1628.7,7.76469422]
[1693613075744,3.63301909,1628.8,1628.7,1.573]
[1693613078792,3.63301909,1628.8,1628.7,2.0498108]
[1693613079287,3.63301909,1628.8,1628.7,8.24152922]
[1693613079489,3.63301909,1628.8,1628.7,2.0498108]
[1693613079696,6.08854401,1628.8,1628.7,2.0498108]
[1693613081390,4.92183354,1628.8,1628.7,2.0498108]
[1693613090068,6.08853942,1628.8,1628.7,2.0498108]
[1693613095300,6.08853942,1628.8,1628.7,0.4768108]
[1693613095600,6.41075612,1628.8,1628.6,3.7819]
[1693613095903,1.28890547,1628.7,1628.6,3.7819]
[1693613096300,5.02202325,1628.7,1628.6,1.673]
[1693613096466,6.08857811,1628.7,1628.6,1.673]
[1693613098375,6.08857811,1628.7,1628.6,2.14522242]
[1693613101416,1.28890547,1628.7,1628.6,2.14522242]
[1693613101596,6.08857811,1628.7,1628.6,2.14522242]
[1693613108441,4.92176197,1628.7,1628.6,2.14522242]
[1693613108607,6.08869984,1628.7,1628.6,2.14522242]
[1693613108808,4.9217566,1628.7,1628.6,2.14522242]
[1693613112743,6.0886937,1628.7,1628.6,2.14522242]
[1693613113145,4.92178014,1628.7,1628.6,2.14522242]
[1693613113811,6.08870287,1628.7,1628.6,2.14522242]
[1693613121347,6.08870287,1628.7,1628.6,2.04522242]
[1693613127167,12.08870287,1628.7,1628.6,2.04522242]
[1693613127326,13.69978635,1628.7,1628.6,2.04522242]
[1693613127662,12.08870287,1628.7,1628.6,2.04522242]
[1693613128363,13.69978635,1628.7,1628.6,2.04522242]
[1693613128564,12.08870287,1628.7,1628.6,2.04522242]
[1693613130068,13.69978635,1628.7,1628.6,2.04522242]
[1693613133236,13.69978635,1628.7,1628.6,2.050148]
[1693613133523,12.41088088,1628.7,1628.6,2.050148]
[1693613137355,12.41088088,1628.7,1628.6,2.04522242]
[1693613141249,12.41088088,1628.7,1628.6,0.47222242]
[1693613141547,14.34598844,1628.7,1628.6,1e-08]
[1693613141850,14.34598844,1628.7,1628.4,2.06813721]
[1693613142052,1.2890433,1628.5,1628.4,2.06813721]
[1693613142342,1.2890433,1628.5,1628.4,1.573]
[1693613142749,3.42245355,1628.5,1628.4,1.573]
[1693613142912,2.88887559,1628.5,1628.4,1.573]
[1693613143113,6.0888407,1628.5,1628.4,1.573]
[1693613143541,4.92188516,1628.5,1628.4,2.13936146]
[1693613143919,3.8553303,1628.5,1628.4,2.13936146]
[1693613144119,4.92188516,1628.5,1628.4,2.13936146]
[1693613144848,2.25549801,1628.5,1628.4,2.13936146]
[1693613145029,4.92188516,1628.5,1628.4,2.13936146]
[1693613145229,2.25549801,1628.5,1628.4,2.13936146]
[1693613145432,4.92188516,1628.5,1628.4,2.13936146]
[1693613145735,2.25549801,1628.5,1628.4,2.13936146]
[1693613145939,4.92188516,1628.5,1628.4,2.13936146]
[1693613146922,2.25549801,1628.5,1628.4,2.13936146]
[1693613147120,3.63284186,1628.5,1628.4,2.13936146]
[1693613147554,2.566287,1628.5,1628.4,2.13936146]
[1693613150686,3.63284186,1628.5,1628.4,2.13936146]
[1693613151375,2.566287,1628.5,1628.4,2.13936146]
[1693613156082,2.6768028,1628.5,1628.4,2.13936146]
[1693613156286,4.27663509,1628.5,1628.4,2.13936146]
[1693613156700,3.21008023,1628.5,1628.4,2.13936146]
[1693613158172,3.63284186,1628.5,1628.4,2.13936146]
[1693613158890,2.566287,1628.5,1628.4,2.13936146]
[1693613162372,3.63284186,1628.5,1628.4,2.13936146]
[1693613162573,9.63284186,1628.5,1628.4,2.13936146]
[1693613166825,10.92188516,1628.5,1628.4,0.56636146]
[1693613167025,10.92188516,1628.5,1628.3,3.7545]
[1693613167225,3.31029561,1628.4,1628.3,2.1815]
[1693613167373,3.31029561,1628.4,1628.3,3.7545]
[1693613167713,3.31029561,1628.4,1628.3,4.673]
[1693613168075,3.31029561,1628.4,1628.3,1.673]
[1693613169913,4.27675032,1628.4,1628.3,1.673]
[1693613170116,3.31029561,1628.4,1628.3,1.673]
[1693613170680,4.27675032,1628.4,1628.3,1.673]
[1693613171002,3.31029561,1628.4,1628.3,1.673]
[1693613172918,4.27675032,1628.4,1628.3,1.673]
[1693613173319,4.27675032,1628.4,1628.3,2.22791011]
[1693613173516,4.27675032,1628.4,1628.3,5.22791011]
[1693613173687,4.27675032,1628.4,1628.3,2.22791011]
[1693613176823,4.27741221,1628.4,1628.3,2.22791011]
[1693613178511,3.63330489,1628.4,1628.3,2.22791011]
[1693613188748,7.7083,1628.5,1628.3,2.22791011]
[1693613188933,3.63381232,1628.4,1628.3,2.22791011]
[1693613191849,6.08978999,1628.4,1628.3,2.22791011]
[1693613192141,4.92268046,1628.4,1628.3,2.22791011]
[1693613192342,3.31163828,1628.4,1628.3,5.84255516]
[1693613192546,0.96665496,1628.5,1628.3,9.93645369]
[1693613192707,3.63353151,1628.5,1628.4,8.74875257]
[1693613192911,2.66687655,1628.5,1628.4,9.26674633]
[1693613193143,1.60012593,1628.5,1628.4,10.25670006]
[1693613193317,2.25553249,1628.6,1628.5,1.573]
[1693613193516,4.92238277,1628.6,1628.5,6.70785404]
[1693613193719,3.63350524,1628.6,1628.5,9.70785404]
[1693613193917,3.63350524,1628.6,1628.5,10.65210053]
[1693613198822,2.66685028,1628.6,1628.5,10.65210053]
[1693613202161,2.66685028,1628.6,1628.5,16.84431519]
[1693613202561,3.31073299,1628.6,1628.5,16.84431519]
[1693613203543,3.31073299,1628.6,1628.5,17.35885661]
[1693613205230,3.31073299,1628.6,1628.5,11.16664195]
[1693613208570,1.71062282,1628.6,1628.5,11.16664195]
[1693613223506,0.64388271,1628.8,1628.5,17.35867337]
[1693613223811,2.25553249,1628.9,1628.7,1.573]
[1693613223812,0.64388271,1628.9,1628.7,1.573]
[1693613223972,0.64388271,1629.0,1628.8,9.27388546]
[1693613224165,0.64388271,1629.0,1628.9,3.0]
[1693613224166,1.71034862,1629.0,1628.9,3.0]
[1693613224393,3.31004329,1629.0,1628.9,6.08185404]
[1693613224624,3.31004329,1629.0,1628.9,7.17003944]
[1693613224797,1.71034862,1629.0,1628.9,7.17003944]
[1693613225102,0.64388271,1629.0,1628.9,7.17003944]
[1693613225422,1.71034862,1629.0,1628.9,7.17003944]
[1693613227595,0.64388271,1629.0,1628.9,7.17003944]
[1693613228011,2.24358098,1629.0,1628.9,7.17003944]
[1693613228309,3.31004689,1629.0,1628.9,7.17003944]
[1693613230129,3.31004689,1629.0,1628.9,10.17003944]
[1693613230631,4.27670185,1629.0,1628.9,10.17003944]
[1693613231199,3.21023594,1629.0,1628.9,10.17003944]
[1693613233715,3.63281914,1629.0,1628.9,12.21373762]
[1693613233904,2.56635323,1629.0,1628.9,12.21373762]
[1693613235939,3.63281914,1629.0,1628.9,12.21373762]
[1693613236303,2.56635323,1629.0,1628.9,12.21373762]
[1693613236505,3.63281914,1629.0,1628.9,12.21373762]
[1693613237738,4.92169667,1629.0,1628.9,12.21373762]
[1693613241045,4.92169667,1629.0,1628.9,11.57385885]
[1693613241857,3.63281914,1629.0,1628.9,11.57385885]
[1693613242159,4.92169667,1629.0,1628.9,11.57385885]
[1693613242324,3.63281914,1629.0,1628.9,11.57385885]
[1693613242526,4.92169667,1629.0,1628.9,11.57385885]
[1693613242822,3.63281914,1629.0,1628.9,11.57385885]
[1693613243257,4.92169667,1629.0,1628.9,11.57385885]
[1693613243667,6.41021605,1629.0,1628.9,10.96567345]
[1693613243964,7.69561804,1629.0,1628.9,10.96567345]
[1693613244147,6.41021605,1629.0,1628.9,10.96567345]
[1693613244548,7.69562131,1629.0,1628.9,10.96567345]
[1693613244746,6.41021605,1629.0,1628.9,10.96567345]
[1693613244945,7.6956539,1629.0,1628.9,10.96567345]
[1693613245990,6.08455698,1629.0,1628.9,10.96567345]
[1693613247991,4.91571097,1629.0,1628.9,10.96567345]
[1693613248797,1.9333163,1629.3,1629.0,3.573]
[1693613248798,0.64250043,1629.3,1629.0,3.573]
[1693613249074,1.28500086,1629.4,1629.2,6.65485404]
[1693613249075,0.64246162,1629.4,1629.2,6.65485404]
[1693613249273,0.64246162,1629.5,1629.3,7.17575257]
[1693613249465,0.64246162,1629.5,1629.4,6.08185404]
[1693613249639,0.64246162,1629.6,1629.4,6.56185404]
[1693613249846,0.64246162,1629.6,1629.5,3.146]
[1693613250048,0.64246162,1629.6,1629.5,9.70785404]
[1693613250770,7.28500086,1629.7,1629.5,9.70785404]
[1693613250971,7.18500086,1629.7,1629.6,8.13485404]
[1693613251157,9.31710167,1629.7,1629.6,6.94773361]
[1693613254881,8.13210081,1629.7,1629.6,6.94773361]
[1693613255690,9.73443621,1629.7,1629.6,6.94773361]
[1693613255999,9.73443065,1629.7,1629.6,6.94773361]
[1693613256793,8.13210081,1629.7,1629.6,6.94773361]
[1693613258702,9.73120335,1629.7,1629.6,5.24202424]
[1693613261669,11.65430174,1629.7,1629.6,5.24202424]
[1693613263403,11.65430174,1629.7,1629.6,5.71014952]
[1693613263805,14.31944454,1629.7,1629.6,5.71014952]
[1693613264805,8.31944454,1629.7,1629.6,5.71014952]
[1693613264993,14.31944454,1629.7,1629.6,5.71014952]
[1693613268615,15.38550365,1629.7,1629.6,5.71014952]
[1693613270029,9.38550365,1629.7,1629.6,5.71014952]
[1693613270192,15.38550365,1629.7,1629.6,5.71014952]
[1693613271229,9.38550365,1629.7,1629.6,7.65487327]
[1693613271423,6.72036085,1629.7,1629.6,7.65487327]
[1693613272828,12.72036085,1629.7,1629.6,7.65487327]
[1693613273136,15.38550365,1629.7,1629.6,7.65487327]
[1693613273331,9.38550365,1629.7,1629.6,7.65487327]
[1693613273623,12.72036085,1629.7,1629.6,7.65487327]
[1693613273926,15.38550365,1629.7,1629.6,5.60297932]
[1693613275812,12.72036085,1629.7,1629.6,5.60297932]
[1693613277627,10.79726246,1629.7,1629.6,5.60297932]
[1693613279734,12.40008301,1629.7,1629.6,5.60297932]
[1693613280101,6.40008301,1629.7,1629.6,5.60297932]
[1693613280300,12.40008301,1629.7,1629.6,5.60297932]
[1693613280645,6.40008301,1629.7,1629.6,5.60297932]
[1693613281023,10.79726246,1629.7,1629.6,4.96334783]
[1693613281420,6.40022014,1629.7,1629.6,4.96334783]
[1693613281670,12.40022014,1629.7,1629.6,4.96334783]
[1693613283058,12.40022014,1629.7,1629.6,5.44334783]
[1693613287282,6.40022014,1629.7,1629.6,5.44334783]
[1693613287574,12.40022014,1629.7,1629.6,5.44334783]
[1693613288085,12.40182132,1629.7,1629.6,5.44334783]
[1693613288661,10.79725701,1629.7,1629.6,5.44334783]
[1693613288861,12.40218787,1629.7,1629.6,5.44334783]
[1693613289062,10.79725701,1629.7,1629.6,5.44334783]
[1693613289261,12.40224611,1629.7,1629.6,5.44334783]
[1693613289574,12.40224633,1629.7,1629.6,5.44334783]
[1693613289875,10.79725701,1629.7,1629.6,5.44334783]
[1693613290675,4.79725701,1629.7,1629.6,5.44334783]
[1693613291374,10.79725701,1629.7,1629.6,4.30622025]
[1693613291759,12.72273418,1629.7,1629.6,4.30622025]
[1693613292673,15.38787453,1629.7,1629.6,4.30622025]
[1693613293675,13.46239736,1629.7,1629.6,4.30622025]
[1693613294674,15.39419708,1629.7,1629.6,4.30622025]
[1693613294981,15.7087874,1629.7,1629.6,4.30622025]
[1693613296247,13.46239736,1629.7,1629.6,4.30622025]
[1693613298685,15.39589589,1629.7,1629.6,4.30622025]
[1693613300780,9.39589589,1629.7,1629.6,4.30622025]
[1693613301152,15.39589589,1629.7,1629.6,4.30622025]
[1693613301691,12.73075554,1629.7,1629.6,4.30622025]
[1693613302787,10.79725701,1629.7,1629.6,4.30622025]
[1693613303689,12.40869178,1629.7,1629.6,4.30622025]
[1693613305788,12.0864145,1629.7,1629.6,4.30622025]
[1693613308790,12.0864145,1629.7,1629.6,10.49464587]
[1693613309991,12.0864145,1629.7,1629.6,10.49465106]
[1693613322919,12.0864145,1629.7,1629.6,10.49457163]
[1693613334013,10.92102844,1629.7,1629.6,10.49457163]
[1693613336006,10.92102844,1629.7,1629.6,10.4945045]
[1693613337030,10.92102844,1629.7,1629.6,11.43595251]
[1693613337901,10.92102844,1629.7,1629.6,11.92558405]
[1693613342343,9.63187095,1629.7,1629.6,11.92558405]
[1693613346814,9.63187095,1629.7,1629.6,10.4945045]
[1693613349153,10.92102844,1629.7,1629.6,10.4945045]
[1693613349457,9.63187095,1629.7,1629.6,10.4945045]
[1693613352328,9.63187095,1629.7,1629.6,4.30622025]
[1693613352534,9.63187095,1629.7,1629.6,10.49443723]
[1693613360528,9.63187095,1629.7,1629.6,11.43020487]
[1693613361711,10.92102844,1629.7,1629.6,11.43020487]
[1693613361917,10.92102844,1629.7,1629.6,11.91768752]
[1693613366907,9.63187095,1629.7,1629.6,11.91768752]
[1693613374341,9.63187095,1629.7,1629.6,11.91762942]
[1693613380080,9.63172749,1629.7,1629.6,11.91762942]
[1693613382985,9.63172749,1629.7,1629.6,8.35577538]
[1693613383185,9.63172749,1629.7,1629.6,1.89137557]
[1693613383186,13.39480277,1629.7,1629.6,1.89137557]
[1693613383689,13.39480277,1629.7,1629.6,0.46812528]
[1693613388401,12.08554487,1629.7,1629.6,2.04112528]
[1693613404429,12.08554487,1629.7,1629.6,2.52180796]
[1693613416244,12.08549789,1629.7,1629.6,2.52180796]
[1693613428655,12.08549789,1629.7,1629.6,8.71022017]
[1693613429759,12.08544125,1629.7,1629.6,8.71022017]
[1693613432162,12.08604072,1629.7,1629.6,8.71022017]
[1693613432362,12.08604072,1629.7,1629.6,8.9057246]
[1693613433262,12.08604072,1629.7,1629.6,8.91219907]
[1693613434261,12.08604072,1629.7,1629.6,8.9057246]
[1693613437659,13.6971242,1629.7,1629.6,8.9057246]
[1693613437865,12.08604072,1629.7,1629.6,8.9057246]
[1693613438562,13.6971242,1629.7,1629.6,8.9057246]
[1693613440336,12.08604072,1629.7,1629.6,8.9057246]
[1693613443497,12.08604072,1629.7,1629.6,8.43759932]
[1693613443848,12.08604072,1629.7,1629.6,8.90535845]
[1693613455690,13.6971242,1629.7,1629.6,8.90535845]
[1693613460462,14.18990984,1629.7,1629.6,1.14394624]
[1693613461194,14.18990984,1629.7,1629.6,0.66326356]
[1693613470180,12.40825742,1629.7,1629.6,0.66326356]
[1693613471977,12.40825742,1629.7,1629.6,2.23626356]
[1693613475321,12.40825742,1629.7,1629.6,2.72239956]
[1693613481253,13.69688065,1629.7,1629.6,2.72239956]
[1693613482149,12.40825742,1629.7,1629.6,2.72239956]
[1693613482653,13.69688292,1629.7,1629.6,2.72239956]
[1693613482952,13.69688606,1629.7,1629.6,2.72239956]
[1693613483944,12.40825742,1629.7,1629.6,2.72239956]
[1693613494065,12.40825742,1629.7,1629.6,2.23626356]
[1693613502458,12.40855831,1629.7,1629.6,2.23626356]
[1693613516507,12.40855831,1629.7,1629.6,8.42481918]
[1693613523824,12.40855831,1629.7,1629.6,8.9176543]
[1693613529832,13.69753577,1629.7,1629.6,8.9176543]
[1693613531122,13.69753577,1629.7,1629.6,8.91759252]
[1693613533433,13.69753577,1629.7,1629.6,11.99945079]
[1693613533434,7.69753577,1629.7,1629.6,11.99945079]
[1693613533733,1.28897746,1629.8,1629.6,16.09334932]
[1693613533919,1.28897746,1629.8,1629.7,12.75035211]
[1693613534134,3.42088049,1629.8,1629.7,12.75035211]
[1693613534527,1.28897746,1629.8,1629.7,14.85928991]
[1693613534904,7.28897746,1629.9,1629.7,14.85928991]
[1693613535122,7.28897746,1629.9,1629.8,1.573]
[1693613535320,9.42080457,1629.9,1629.8,4.65485404]
[1693613535518,9.42080457,1629.9,1629.8,7.65485404]
[1693613535712,7.28897746,1629.9,1629.8,7.65485404]
[1693613536033,7.28791923,1629.9,1629.8,7.65485404]
[1693613536413,6.0,1629.9,1629.8,7.65485404]
[1693613538737,6.64355008,1629.9,1629.8,7.65485404]
[1693613538904,6.63877008,1629.9,1629.8,7.65485404]
[1693613541547,6.63877008,1629.9,1629.8,8.13485404]
[1693613543854,8.23723755,1629.9,1629.8,8.13485404]
[1693613547429,6.63840127,1629.9,1629.8,8.13485404]
[1693613548537,0.64318127,1629.9,1629.8,8.66986648]
[1693613552853,0.64318127,1629.9,1629.8,9.14966907]
[1693613556059,0.64318127,1629.9,1629.8,10.08033272]
[1693613556268,1.70906725,1630.0,1629.8,10.08033272]
[1693613556567,0.64318127,1630.0,1629.9,8.13485404]
[1693613556769,6.63840127,1630.1,1629.9,8.13485404]
[1693613556962,6.63840127,1630.1,1629.9,6.56185404]
[1693613557466,7.60317318,1630.1,1629.9,6.56185404]
[1693613557665,6.63840127,1630.1,1629.9,6.56185404]
[1693613558566,7.60317318,1630.1,1629.9,6.56185404]
[1693613559966,1.60795318,1630.1,1629.9,6.56185404]
[1693613560136,7.60317318,1630.1,1629.9,6.56185404]
[1693613560337,1.70896552,1630.0,1629.9,6.56185404]
[1693613560543,1.70896552,1630.0,1629.9,8.13485404]
[1693613561771,1.70896552,1630.0,1629.9,11.13485404]
[1693613563650,1.70896552,1630.0,1629.9,11.66977965]
[1693613564451,3.3076375,1630.0,1629.9,11.66977965]
[1693613570362,2.24185325,1630.0,1629.9,11.66977965]
[1693613570562,3.3076375,1630.0,1629.9,11.66977965]